fUSD/lending_fUSD_20260122
["ID","MTS","AMOUNT","RATE_DAILY","PERIOD"]
[403036025,1769093666796,-99.94815332,0.00015025,2]
[403036026,1769093666828,-71.89733018,0.00015025,2]
[403036027,1769093670052,-187.80666021,0.00015025,2]
[403036028,1769093672474,-240.29600961,0.00015025,2]
[403036029,1769093672502,-152.79879655,0.00015025,2]
[403036030,1769093677409,-232.09640326,0.00015025,2]
[403036031,1769093679200,-115.10480019,0.00015025,2]
[403036032,1769093679229,-324.68563957,0.00015025,2]
[403036033,1769093680596,-175.31436043,0.00015025,2]
[403036034,1769093680622,-62.8171439,0.00015025,2]
[403036035,1769093684704,-213.26579067,0.00015025,2]
[403036036,1769093686592,-223.91706543,0.00015025,2]
[403036037,1769093686619,-107.03991636,0.00015025,2]
[403036038,1769093689210,-153.76731991,0.00015025,2]
[403036039,1769093720641,150.0,1e-05,2]
[403036041,1769093850853,337.31667334,0.00014921,2]
[403036042,1769093850993,259.35214931,0.00014921,2]
[403036043,1769093851092,271.905788,0.00014921,2]
[403036044,1769093851132,500.0,0.00014921,2]
[403036045,1769093851208,174.58888126,0.00014921,2]
[403036046,1769093851255,500.0,0.00014921,2]
[403036047,1769093851663,500.0,0.00014921,2]
[403036048,1769093859669,500.0,0.00014921,2]
[403036049,1769093859739,500.0,0.00014921,2]
[403036050,1769093859799,500.0,0.00014921,2]
[403036051,1769093859858,500.0,0.00014921,2]
[403036052,1769093859914,500.0,0.00014921,2]
[403036053,1769093859964,500.0,0.00014921,2]
[403036054,1769093860019,500.0,0.00014921,2]
[403036055,1769093860068,500.0,0.00014921,2]
[403036056,1769093860132,475.93729644,0.00014921,2]
[403036057,1769093860180,500.0,0.00014921,2]
[403036058,1769093860234,500.0,0.00014921,2]
[403036059,1769093860282,500.0,0.00014921,2]
[403036060,1769093860420,500.0,0.00014921,2]
[403036061,1769093871694,500.0,0.00014921,2]
[403036062,1769093871733,190.33405159,0.00014921,2]
[403036063,1769093871780,500.0,0.00014921,2]
[403036064,1769093871824,500.0,0.00014921,2]
[403036065,1769093871878,181.54650451,0.00014921,2]
[403036087,1769093925717,500.0,0.00014921,2]
[403036088,1769093925769,500.0,0.00014921,2]
[403036089,1769093925832,500.0,0.00014921,2]
[403036090,1769093926024,152.19214746,0.00014921,2]
[403036091,1769093926060,347.80785254,0.00014921,2]
[403036092,1769093931664,600.0,0.000226,120]
[403036096,1769093942145,600.0,0.000226,120]
[403036102,1769093978333,1030.61258171,0.00015105,2]
[403036107,1769094069630,500.0,0.00014921,2]
[403036108,1769094070192,500.0,0.00014921,2]
[403036109,1769094070505,500.0,0.00014921,2]
[403036110,1769094070825,500.0,0.00014921,2]
[403036111,1769094071131,500.0,0.00014921,2]
[403036112,1769094071456,500.0,0.00014921,2]
[403036113,1769094071830,500.0,0.00014921,2]
[403036114,1769094072184,500.0,0.00014921,2]
[403036115,1769094072265,500.0,0.00014921,2]
[403036117,1769094081386,500.0,0.00014921,2]
[403036118,1769094081444,549.63097849,0.00014921,2]
[403036119,1769094137018,220.14101572,0.000176,30]
[403036120,1769094138562,500.0,0.00014921,2]
[403036121,1769094138621,500.0,0.00014921,2]
[403036122,1769094138674,500.0,0.00014921,2]
[403036123,1769094138728,500.0,0.00014921,2]
[403036124,1769094138782,294.66788064,0.00014921,2]
[403036125,1769094143301,-1200.0,0.0001512,2]
[403036126,1769094143335,-276.0,0.0001512,2]
[403036127,1769094145551,500.0,0.000176,30]
[403036128,1769094150588,500.0,0.000176,30]
[403036129,1769094151410,644.27528741,0.00014899,2]
[403036130,1769094151466,531.11488451,0.000176,30]
[403036131,1769094158990,-500.0,0.00015121,2]
[403036132,1769094159025,-500.0,0.00015121,2]
[403036133,1769094159060,-500.0,0.00015121,2]
[403036134,1769094159095,-500.0,0.00015121,2]
[403036135,1769094159129,-500.0,0.00015121,2]
[403036136,1769094174413,-300.0,0.00015226,2]
[403036137,1769094181726,161.42049032,0.00015128,2]
[403036138,1769094189780,-300.0,0.00015227,2]
[403036139,1769094190386,500.0,0.00015121,2]
[403036140,1769094201147,500.0,0.00014921,2]
[403036141,1769094201190,500.0,0.00014921,2]
[403036142,1769094201384,500.0,0.00014921,2]
[403036143,1769094201448,500.0,0.00014921,2]
[403036144,1769094201489,500.0,0.00014921,2]
[403036145,1769094201540,200.0,0.00014921,2]
[403036146,1769094205368,-500.0,0.00015228,2]
[403036147,1769094205400,-500.0,0.00015228,2]
[403036148,1769094205431,-500.0,0.00015228,2]
[403036149,1769094205462,-500.0,0.00015228,2]
[403036150,1769094205493,-500.0,0.00015228,2]
[403036151,1769094220822,-170.22531128,0.00015237,2]
[403036152,1769094220858,-604.42150929,0.00015237,2]
[403036153,1769094220890,-500.0,0.00015237,2]
[403036154,1769094268651,500.0,0.00014921,2]
[403036155,1769094269015,500.0,0.00014921,2]
[403036156,1769094269638,500.0,0.00014921,2]
[403036157,1769094271612,500.0,0.00014921,2]
[403036158,1769094272738,500.0,0.00014921,2]
[403036159,1769094273504,200.0,0.00014921,2]
[403036160,1769094289042,500.0,0.00014921,2]
[403036161,1769094289092,500.0,0.00014921,2]
[403036162,1769094289379,500.0,0.00014921,2]
[403036163,1769094289429,500.0,0.00014921,2]
[403036164,1769094289473,425.33211936,0.00014921,2]
[403036165,1769094289520,500.0,0.00014921,2]
[403036166,1769094498521,1200.0085,0.00015961,3]
[403036177,1769094631822,-161.42049032,0.000169,2]
[403036178,1769094631831,-293.0,0.000169,2]
[403036180,1769094631841,-300.0,0.00016956,2]
[403036181,1769094631850,-1200.0,0.00016956,2]
[403036182,1769094631860,-2762.1257788,0.00016957,2]
[403036183,1769094631904,-543.3,0.00016957,2]
[403036184,1769094631915,-822.10562034,0.00016957,2]
[403036185,1769094631927,-5326.68,0.00016957,2]
[403036186,1769094631951,-545.77860086,0.00016957,2]
[403036187,1769094631962,-250.0,0.00017,2]
[403036188,1769094631971,-5967.96,0.00017,2]
[403036189,1769094631981,-499.99,0.00017,2]
[403036190,1769094631990,-151.0,0.00017411,2]
[403036191,1769094632000,-151.0,0.00017418,2]
[403036192,1769094632010,-207.10004465,0.00017434,2]
[403036193,1769094632023,-151.0,0.00017442,2]
[403036194,1769094632033,-236.12167134,0.00017454,2]
[403036195,1769094632043,-500.0,0.00017454,2]
[403036196,1769094632053,-500.0,0.00017454,2]
[403036197,1769094632063,-172.21221689,0.00017454,2]
[403036198,1769094632073,-8521.56957582,0.00017455,2]
[403036199,1769094632085,-1808.96,0.00017455,2]
[403036200,1769094632101,-452.5,0.00017455,2]
[403036201,1769094632113,-305.0,0.00017455,2]
[403036256,1769094633840,-988911.97042418,0.00017455,2]
[403036257,1769094633865,-300.0,0.00017534,4]
[403036258,1769094633892,-300.0,0.00017534,4]
[403036259,1769094633917,-550.0,0.00017554,2]
[403036260,1769094633941,-8029.97,0.00017555,2]
[403036261,1769094633965,-7008.61,0.00017555,2]
[403036262,1769094633989,-300.0,0.00017808,4]
[403036264,1769094637872,-1402.49229,0.00018081,2]
[403036265,1769094637885,-1097.50771,0.00018081,2]
[403036266,1769094637896,-195.0,0.00018081,2]
[403036267,1769094637905,-420.0,0.00018521,2]
[403036268,1769094637915,-1680.0,0.00018613,2]
[403036269,1769094637925,-935.0,0.00018642,2]
[403036270,1769094637934,-4554.0788869,0.00018653,2]
[403036271,1769094637943,-16045.02148169,0.00018674,2]
[403036272,1769094637954,-300.0,0.00019,2]
[403036273,1769094637965,-500.0,0.00019178,2]
[403036274,1769094637974,-500.0,0.00019178,2]
[403036275,1769094637983,-500.0,0.00019178,2]
[403036276,1769094637992,-219.0897497,0.00019178,2]
[403036277,1769094638002,-500.0,0.00019178,2]
[403036278,1769094638011,-500.0,0.00019178,2]
[403036279,1769094638021,-1225.7,0.00019198,2]
[403036280,1769094638030,-511.0,0.000196,2]
[403036281,1769094638039,-200.0,0.0001966,2]
[403036282,1769094638048,-200.0,0.0001966,2]
[403036283,1769094638057,-500.0,0.0001966,2]
[403036284,1769094638067,-500.0,0.0001966,2]
[403036285,1769094638076,-500.0,0.0001966,2]
[403036286,1769094638086,-500.0,0.0001966,2]
[403036287,1769094638095,-500.0,0.0001966,2]
[403036288,1769094638104,-500.0,0.0001966,2]
[403036289,1769094638114,-500.0,0.0001966,2]
[403036290,1769094638123,-151.0,0.0001966,2]
[403036291,1769094638133,-151.0,0.0001966,2]
[403036292,1769094638143,-151.0,0.0001966,2]
[403036293,1769094638153,-151.0,0.0001966,2]
[403036294,1769094638163,-151.0,0.0001966,2]
[403036296,1769094638173,-151.0,0.0001966,2]
[403036298,1769094638184,-500.0,0.0001966,2]
[403036300,1769094638193,-151.0,0.0001966,2]
[403036302,1769094638204,-500.0,0.0001966,2]
[403036304,1769094638213,-151.0,0.0001966,2]
[403036306,1769094638223,-500.0,0.0001966,2]
[403036308,1769094638232,-151.0,0.0001966,2]
[403036310,1769094638242,-500.0,0.0001966,2]
[403036312,1769094638251,-151.0,0.0001966,2]
[403036314,1769094638260,-500.0,0.0001966,2]
[403036316,1769094638271,-151.0,0.0001966,2]
[403036318,1769094638281,-415.0,0.0001966,2]
[403036320,1769094638290,-151.0,0.0001966,2]
[403036322,1769094638299,-500.0,0.00019672,2]
[403036324,1769094638309,-500.0,0.00019672,2]
[403036326,1769094638318,-500.0,0.00019672,2]
[403036328,1769094638328,-500.0,0.00019672,2]
[403036330,1769094638337,-500.0,0.00019672,2]
[403036332,1769094638346,-500.0,0.00019672,2]
[403036334,1769094638355,-500.0,0.00019672,2]
[403036336,1769094638364,-500.0,0.00019672,2]
[403036338,1769094638374,-500.0,0.00019672,2]
[403036340,1769094638384,-500.0,0.00019672,2]
[403036342,1769094638393,-500.0,0.00019672,2]
[403036343,1769094638403,-500.0,0.00019672,2]
[403036346,1769094638413,-500.0,0.00019672,2]
[403036347,1769094638423,-500.0,0.00019672,2]
[403036349,1769094638433,-500.0,0.00019672,2]
[403036351,1769094638442,-500.0,0.00019672,2]
[403036354,1769094638460,-500.0,0.00019672,2]
[403036356,1769094638470,-151.0,0.00019672,2]
[403036358,1769094638480,-500.0,0.00019672,2]
[403036360,1769094638489,-151.0,0.00019672,2]
[403036362,1769094638499,-151.0,0.00019672,2]
[403036364,1769094638508,-500.0,0.00019672,2]
[403036366,1769094638519,-151.0,0.00019672,2]
[403036368,1769094638529,-500.0,0.00019672,2]
[403036370,1769094638539,-500.0,0.00019672,2]
[403036372,1769094638549,-151.0,0.00019672,2]
[403036374,1769094638559,-151.0,0.00019672,2]
[403036376,1769094638569,-500.0,0.00019672,2]
[403036378,1769094638578,-151.0,0.00019672,2]
[403036381,1769094638589,-500.0,0.00019672,2]
[403036383,1769094638602,-151.0,0.00019672,2]
[403036385,1769094638611,-500.0,0.00019672,2]
[403036387,1769094638622,-151.0,0.00019672,2]
[403036389,1769094638631,-500.0,0.00019672,2]
[403036391,1769094638640,-500.0,0.00019672,2]
[403036393,1769094638650,-151.0,0.00019672,2]
[403036395,1769094638659,-500.0,0.00019672,2]
[403036397,1769094638669,-151.0,0.00019672,2]
[403036399,1769094638679,-500.0,0.00019672,2]
[403036401,1769094638689,-500.0,0.00019672,2]
[403036403,1769094638699,-500.0,0.00019672,2]
[403036405,1769094638708,-151.0,0.00019672,2]
[403036407,1769094638718,-500.0,0.00019672,2]
[403036409,1769094638729,-500.0,0.00019672,2]
[403036411,1769094638738,-500.0,0.00019672,2]
[403036413,1769094638748,-500.0,0.00019672,2]
[403036415,1769094638758,-500.0,0.00019672,2]
[403036417,1769094638768,-500.0,0.00019672,2]
[403036419,1769094638783,-500.0,0.00019672,2]
[403036421,1769094638793,-500.0,0.00019672,2]
[403036424,1769094638803,-241.0,0.00019801,2]
[403036425,1769094638813,-1885.87,0.0002,2]
[403036428,1769094638823,-587.0,0.00020229,2]
[403036430,1769094638832,-150.0,0.00020309,2]
[403036431,1769094638842,-1920.0,0.00020431,2]
[403036433,1769094638851,-1194.73,0.00020548,2]
[403036436,1769094638861,-150.0,0.000209,7]
[403036438,1769094638872,-5207.72003629,0.00021257,2]
[403036440,1769094638883,-1225.7,0.00021363,2]
[403036442,1769094638895,-250.0,0.00021719,2]
[403036444,1769094638905,-823.0,0.00022096,2]
[403036446,1769094638915,-150.0,0.00022192,2]
[403036448,1769094638927,-150.0,0.00022247,2]
[403036450,1769094638936,-150.0,0.00022302,2]
[403036452,1769094638946,-150.0,0.00022356,2]
[403036454,1769094638959,-227.54993751,0.00022411,2]
[403036456,1769094638970,-5000.0,0.00022426,2]
[403036458,1769094638979,-511.0,0.00022956,5]
[403036460,1769094638990,-3210.0,0.00023288,2]
[403036462,1769094639000,-1713.78842872,0.00023288,2]
[403036464,1769094639010,-1225.7,0.00023528,2]
[403036466,1769094639019,-213.8,0.00024104,3]
[403036468,1769094639030,-1152.0,0.00024135,2]
[403036470,1769094639040,-1268.0,0.00024174,2]
[403036472,1769094639050,-276.0,0.00024174,2]
[403036474,1769094639061,-334.66,0.00024174,2]
[403036476,1769094639071,-1247.68,0.00024174,2]
[403036478,1769094639081,-915.0,0.00024205,2]
[403036480,1769094639091,-1203.0,0.00024205,2]
[403036482,1769094639100,-565.317,0.00024205,2]
[403036484,1769094639110,-2441.0,0.00024205,2]
[403036486,1769094639120,-4828.0,0.00024205,2]
[403036488,1769094639130,-27651.69504904,0.00024466,2]
[403036490,1769094639141,-752.324,0.00024541,30]
[403036492,1769094639151,-615.0,0.00024566,2]
[403036494,1769094639161,-1332.0,0.00024566,2]
[403036496,1769094639171,-1407.0,0.00024566,2]
[403036498,1769094639181,-3210.0,0.00024657,2]
[403036500,1769094639191,-150.0,0.00024658,2]
[403036502,1769094639201,-500.0,0.00024873,2]
[403036504,1769094639211,-243.91713323,0.00024873,2]
[403036506,1769094639220,-500.0,0.00024873,2]
[403036508,1769094639230,-500.0,0.00024873,2]
[403036510,1769094639240,-1000.0,0.00025421,2]
[403036512,1769094639250,-562.63678791,0.00025421,2]
[403036514,1769094639260,-1000.0,0.00025421,2]
[403036516,1769094639272,-1225.7,0.00025693,2]
[403036518,1769094639282,-474.80752274,0.00025968,2]
[403036520,1769094639292,-1500.0,0.00025968,2]
[403036523,1769094639305,-3210.0,0.00026026,2]
[403036525,1769094639315,-511.0,0.00026311,8]
[403036527,1769094639325,-348.0,0.00026362,2]
[403036529,1769094639335,-27651.69504898,0.00026394,2]
[403036531,1769094639345,-2000.0,0.00026516,2]
[403036532,1769094639354,-704.49454123,0.00026828,2]
[403036533,1769094639364,-1287.82,0.00027,7]
[403036534,1769094639374,-2500.0,0.00027064,2]
[403036535,1769094639383,-1000.0,0.00027123,2]
[403036536,1769094639394,-150.0,0.00027123,2]
[403036537,1769094639404,-1268.0,0.00027174,2]
[403036538,1769094639414,-276.0,0.00027174,2]
[403036539,1769094639423,-915.0,0.00027205,2]
[403036540,1769094639433,-1203.0,0.00027205,2]
[403036541,1769094639443,-2441.0,0.00027205,2]
[403036542,1769094639452,-4828.0,0.00027205,2]
[403036543,1769094639462,-3210.0,0.00027395,2]
[403036544,1769094639472,-500.0,0.00027397,30]
[403036545,1769094639481,-1238.01019802,0.00027497,5]
[403036546,1769094639491,-615.0,0.00027566,2]
[403036547,1769094639501,-1332.0,0.00027566,2]
[403036548,1769094639511,-1407.0,0.00027566,2]
[403036549,1769094639521,-1628.71369645,0.00027612,5]
[403036550,1769094639531,-1000.0,0.00027671,2]
[403036551,1769094639542,-1225.7,0.00027858,2]
[403036552,1769094639552,-1000.0,0.000279,2]
[403036553,1769094639562,-2070.6252,0.00028204,2]
[403036554,1769094639571,-41769.5159754,0.00028294,2]
[403036555,1769094639581,-155.78223855,0.00028304,2]
[403036556,1769094639591,-500.0,0.00028304,18]
[403036557,1769094639601,-4960.0,0.00028304,5]
[403036558,1769094639611,-1637.89,0.00028304,2]
[403036559,1769094639621,-1637.89,0.00028304,2]
[403036560,1769094639631,-1637.89,0.00028304,2]
[403036561,1769094639641,-1637.89,0.00028304,2]
[403036562,1769094639650,-1637.89,0.00028304,2]
[403036563,1769094639660,-2441.04,0.00028304,2]
[403036564,1769094639670,-27651.69504898,0.00028322,2]
[403036565,1769094639679,-170.24,0.000284,7]
[403036566,1769094639690,-1378.15325802,0.00028447,2]
[403036567,1769094639702,-1101.0,0.00028944,5]
[403036568,1769094639712,-203.6488651,0.00029477,2]
[403036569,1769094639723,-150.0,0.00029589,2]
[403036570,1769094639734,-511.0,0.00029667,11]
[403036571,1769094639745,-1225.7,0.00030023,2]
[403036572,1769094639755,-500.0,0.00030027,2]
[403036573,1769094639764,-150.0,0.00030027,2]
[403036574,1769094639775,-500.0,0.00030082,2]
[403036575,1769094639786,-197.42246964,0.00030137,2]
[403036576,1769094639796,-1447.0,0.00030137,2]
[403036577,1769094639806,-1447.0,0.00030192,2]
[403036578,1769094639815,-915.0,0.00030205,2]
[403036579,1769094639825,-1203.0,0.00030205,2]
[403036580,1769094639835,-2441.0,0.00030205,2]
[403036581,1769094639845,-216.37100739,0.00030238,2]
[403036582,1769094639855,-1447.0,0.00030247,2]
[403036583,1769094639866,-27651.69504898,0.0003025,2]
[403036584,1769094639876,-1447.0,0.00030301,2]
[403036585,1769094639887,-1447.0,0.00030356,2]
[403036587,1769094639897,-1101.0,0.00030391,5]
[403036588,1769094639907,-1447.0,0.00030411,2]
[403036589,1769094639917,-1447.0,0.00030466,2]
[403036590,1769094639928,-1447.0,0.00030521,2]
[403036591,1769094639939,-615.0,0.00030566,2]
[403036592,1769094639948,-1332.0,0.00030566,2]
[403036593,1769094639958,-1407.0,0.00030566,2]
[403036594,1769094639970,-1447.0,0.00030575,2]
[403036595,1769094639980,-1447.0,0.0003063,2]
[403036596,1769094639990,-1447.0,0.00030685,2]
[403036597,1769094640000,-1447.0,0.0003074,2]
[403036598,1769094640010,-163.08495989,0.00030744,5]
[403036599,1769094640021,-150.47180521,0.00030744,5]
[403036600,1769094640030,-164.12572755,0.00030744,5]
[403036601,1769094640041,-1447.0,0.00030795,2]
[403036602,1769094640051,-155.7822385,0.00030797,2]
[403036603,1769094640061,-1447.0,0.00030849,2]
[403036604,1769094640071,-1447.0,0.00030904,2]
[403036605,1769094640080,-1447.0,0.00030959,2]
[403036606,1769094640090,-1447.0,0.00031014,2]
[403036607,1769094640099,-1447.0,0.00031069,2]
[403036608,1769094640109,-1447.0,0.00031123,2]
[403036609,1769094640119,-1447.0,0.00031178,2]
[403036610,1769094640129,-1447.0,0.00031233,2]
[403036611,1769094640139,-1447.0,0.00031288,2]
[403036612,1769094640150,-1447.0,0.00031342,2]
[403036613,1769094640159,-1462.46116223,0.00031397,2]
[403036614,1769094640170,-1000.0,0.000316,2]
[403036615,1769094640180,-1914.0,0.000316,2]
[403036616,1769094640189,-2270.276,0.00031685,30]
[403036617,1769094640199,-200.0,0.00032,2]
[403036618,1769094640209,-150.0,0.00032055,2]
[403036619,1769094640218,-27651.69504898,0.00032178,2]
[403036620,1769094640228,-1225.7,0.00032188,2]
[403036621,1769094640237,-439.25868688,0.0003274,28]
[403036622,1769094640247,-168.66483591,0.00032877,2]
[403036623,1769094640257,-500.0,0.00032877,2]
[403036624,1769094640267,-500.0,0.00032877,2]
[403036625,1769094640278,-500.0,0.00032877,2]
[403036626,1769094640287,-500.0,0.00032877,2]
[403036627,1769094640297,-500.0,0.00032877,2]
[403036628,1769094640306,-350.26544043,0.00032877,2]
[403036629,1769094640316,-500.0,0.00032877,5]
[403036630,1769094640326,-784.0,0.00032877,2]
[403036631,1769094640335,-159.52,0.000329,14]
[403036632,1769094640345,-784.0,0.00032932,2]
[403036633,1769094640355,-784.0,0.00032987,2]
[403036634,1769094640364,-150.0,0.00033,14]
[403036635,1769094640374,-511.0,0.00033022,14]
[403036636,1769094640384,-784.0,0.00033041,2]
[403036637,1769094640393,-784.0,0.00033096,2]
[403036638,1769094640403,-784.0,0.00033151,2]
[403036639,1769094640412,-915.0,0.00033205,2]
[403036640,1769094640423,-1203.0,0.00033205,2]
[403036641,1769094640432,-2441.0,0.00033205,2]
[403036642,1769094640442,-784.0,0.00033206,2]
[403036643,1769094640452,-784.0,0.00033261,2]
[403036644,1769094640462,-155.7822385,0.00033289,2]
[403036645,1769094640472,-784.0,0.00033315,2]
[403036646,1769094640482,-204.0,0.0003333,30]
[403036647,1769094640491,-1000.0,0.0003333,2]
[403036648,1769094640501,-1000.0,0.0003333,2]
[403036649,1769094640511,-1000.0,0.0003333,2]
[403036650,1769094640521,-1000.0,0.0003333,2]
[403036651,1769094640530,-1000.0,0.0003333,2]
[403036652,1769094640540,-1000.0,0.0003336,2]
[403036653,1769094640550,-1000.0,0.0003336,2]
[403036654,1769094640560,-1000.0,0.0003336,2]
[403036655,1769094640569,-1000.0,0.0003336,2]
[403036656,1769094640579,-1000.0,0.0003336,2]
[403036657,1769094640589,-784.0,0.0003337,2]
[403036658,1769094640599,-502.21128854,0.00033425,5]
[403036659,1769094640609,-784.0,0.00033425,2]
[403036660,1769094640620,-784.0,0.0003348,2]
[403036661,1769094640629,-784.0,0.00033535,2]
[403036662,1769094640639,-200.0,0.00033564,2]
[403036663,1769094640649,-615.0,0.00033566,2]
[403036665,1769094640660,-1332.0,0.00033566,2]
[403036666,1769094640669,-1407.0,0.00033566,2]
[403036667,1769094640679,-784.0,0.00033589,2]
[403036668,1769094640689,-784.0,0.00033644,2]
[403036669,1769094640699,-784.0,0.00033699,2]
[403036670,1769094640709,-784.0,0.00033754,2]
[403036671,1769094640719,-784.0,0.00033809,2]
[403036672,1769094640728,-784.0,0.00033863,2]
[403036673,1769094640738,-784.0,0.00033918,2]
[403036674,1769094640748,-784.0,0.00033973,2]
[403036675,1769094640758,-784.0,0.00034028,2]
[403036676,1769094640768,-784.0,0.00034082,2]
[403036677,1769094640781,-27651.69504898,0.00034105,2]
[403036678,1769094640792,-798.11609551,0.00034137,2]
[403036679,1769094640802,-300.0,0.00034173,5]
[403036680,1769094640812,-150.0,0.00034173,5]
[403036681,1769094640821,-1225.7,0.00034353,5]
[403036683,1769094640831,-701.10639016,0.00034721,5]
[403036685,1769094640841,-250.0,0.00034721,5]
[403036687,1769094640851,-818.0,0.00034835,30]
[403036688,1769094640861,-342.5707012,0.00034849,120]
[403036689,1769094640871,-9844.72999628,0.00034886,2]
[403036690,1769094640882,-5000.0,0.00034886,2]
[403036691,1769094640895,-5000.0,0.00034886,2]
[403036692,1769094640905,-5000.0,0.00034886,2]
[403036693,1769094640915,-5000.0,0.00034886,2]
[403036694,1769094640925,-150.0,0.00035,2]
[403036695,1769094640936,-350.0,0.00035268,5]
[403036696,1769094640946,-186.97486375,0.00035589,30]
[403036697,1769094640957,-500.0,0.00035616,7]
[403036698,1769094640966,-161.98054707,0.00035616,7]
[403036699,1769094640976,-155.7822385,0.00035782,2]
[403036700,1769094640986,-450.0,0.00035816,5]
[403036701,1769094640996,-27651.69504898,0.00036033,2]
[403036702,1769094641006,-915.0,0.00036205,2]
[403036703,1769094641015,-1203.0,0.00036205,2]
[403036704,1769094641027,-2441.0,0.00036205,2]
[403036705,1769094641036,-550.0,0.00036364,5]
[403036706,1769094641046,-511.0,0.00036378,18]
[403036707,1769094641055,-159.52,0.000364,14]
[403036708,1769094641065,-1225.7,0.00036518,7]
[403036709,1769094641075,-615.0,0.00036566,2]
[403036710,1769094641085,-650.0,0.00036912,5]
[403036711,1769094641094,-150.0,0.00037,2]
[403036712,1769094641104,-1942.90524741,0.00037279,2]
[403036713,1769094641113,-27651.69504898,0.00037961,2]
[403036714,1769094641123,-155.7822385,0.00038274,2]
[403036715,1769094641133,-1254.20217453,0.00038428,2]
[403036716,1769094641144,-200.0,0.00038462,2]
[403036717,1769094641155,-1225.7,0.00038683,30]
[403036718,1769094641166,-1942.90524741,0.00038792,2]
[403036719,1769094641176,-152.0164,0.00038888,30]
[403036720,1769094641186,-915.0,0.00039205,2]
[403036721,1769094641197,-2441.0,0.00039205,2]
[403036722,1769094641207,-1159.21062443,0.0003924,28]
[403036723,1769094641218,-2044.98494711,0.0003924,28]
[403036724,1769094641229,-3059.17517836,0.0003924,28]
[403036725,1769094641239,-500.0,0.00039451,14]
[403036726,1769094641248,-500.0,0.00039451,14]
[403036727,1769094641257,-159.52,0.000396,14]
[403036728,1769094641267,-167.18028,0.00039616,115]
[403036729,1769094641282,-23382.21,0.000397,120]
[403036730,1769094641292,-162.380719,0.00039726,2]
[403036731,1769094641302,-511.0,0.00039733,21]
[403036732,1769094641313,-4139.1702,0.0003974,28]
[403036733,1769094641323,-7000.0,0.00039748,31]
[403036734,1769094641334,-167.18029,0.00039816,115]
[403036735,1769094641344,-27651.69504898,0.00039889,15]
[403036736,1769094641354,-1000.0,0.000399,2]
[403036737,1769094641364,-401.70035869,0.0003997,2]
[403036738,1769094641375,-950.0,0.0003997,2]
[403036739,1769094641385,-151.0,0.00039997,14]
[403036740,1769094641395,-150.0,0.00039999,20]
[403036741,1769094641405,-63432.08500622,0.0004,60]
[403036742,1769094641416,-300490.97,0.0004,15]
[403036743,1769094641426,-200.0,0.0004,60]
[403036744,1769094641437,-150.0,0.0004,26]
[403036745,1769094641447,-150.0,0.0004,21]
[403036746,1769094641458,-253.0,0.0004,30]
[403036747,1769094641468,-150.0,0.0004,21]
[403036748,1769094641478,-1518.345101,0.0004,32]
[403036749,1769094641488,-200.0,0.0004,120]
[403036750,1769094641498,-167.18028,0.00040016,115]